[Event "*** Titled Tuesday Blitz"]
[Site "Chess.com"]
[Date "2021.03.16"]
[Round "7"]
[White "alejogarcia1999"]
[Black "GMJustin"]
[Result "0-1"]
[WhiteElo "2487"]
[BlackElo "2329"]
[TimeControl "180+1"]
[EndTime "11:17:52 PDT"]
[Termination "GMJustin won by resignation"]

1. Nf3 {[%clk 0:03:00.9]} 1... d5 {[%clk 0:02:58.2]} 2. g3 {[%clk 0:03:01.8]}
2... c5 {[%clk 0:02:47.5]} 3. Bg2 {[%clk 0:03:01.7]} 3... Nc6 {[%clk 0:02:39.9]}
4. d4 {[%clk 0:03:01.4]} 4... e6 {[%clk 0:02:39.7]} 5. O-O {[%clk 0:03:00.8]}
5... Nf6 {[%clk 0:02:38.2]} 6. c4 {[%clk 0:03:00.5]} 6... dxc4 {[%clk
0:02:25.2]} 7. Ne5 {[%clk 0:03:00.1]} 7... Nxe5 {[%clk 0:02:16.8]} 8. dxe5
{[%clk 0:02:59.4]} 8... Qxd1 {[%clk 0:02:15.8]} 9. Rxd1 {[%clk 0:02:58.8]} 9...
Nd7 {[%clk 0:02:15.8]} 10. Na3 {[%clk 0:02:58.2]} 10... Nxe5 {[%clk 0:01:45.2]}
11. Bf4 {[%clk 0:02:57.4]} 11... f6 {[%clk 0:01:39.5]} 12. Bxe5 {[%clk
0:02:23.6]} 12... fxe5 {[%clk 0:01:40.4]} 13. Nxc4 {[%clk 0:02:23.5]} 13... Be7
{[%clk 0:01:26.9]} 14. Nxe5 {[%clk 0:02:05]} 14... Bf6 {[%clk 0:01:26.4]} 15.
Nc4 {[%clk 0:01:57.7]} 15... Ke7 {[%clk 0:01:19]} 16. e4 {[%clk 0:01:54]} 16...
Bd4 {[%clk 0:01:17]} 17. e5 {[%clk 0:01:44]} 17... Rb8 {[%clk 0:01:14.9]} 18. a4
{[%clk 0:01:41]} 18... b6 {[%clk 0:01:08]} 19. Rac1 {[%clk 0:01:02.7]} 19... Ba6
{[%clk 0:01:01.8]} 20. Bc6 {[%clk 0:00:46.9]} 20... Rhf8 {[%clk 0:00:51.2]} 21.
Rc2 {[%clk 0:00:46.9]} 21... Bxc4 {[%clk 0:00:33.8]} 22. Rxc4 {[%clk 0:00:43.2]}
22... Bxf2+ {[%clk 0:00:33.9]} 23. Kg2 {[%clk 0:00:41]} 23... Bd4 {[%clk
0:00:34.3]} 24. b4 {[%clk 0:00:40.3]} 24... Rf2+ {[%clk 0:00:33.8]} 25. Kh1
{[%clk 0:00:33.3]} 25... Rbf8 {[%clk 0:00:28.5]} 26. bxc5 {[%clk 0:00:31.2]}
26... bxc5 {[%clk 0:00:27.7]} 27. Rb1 {[%clk 0:00:29.5]} 27... Rf1+ {[%clk
0:00:25.5]} 28. Rxf1 {[%clk 0:00:28.2]} 28... Rxf1+ {[%clk 0:00:25.9]} 29. Kg2
{[%clk 0:00:29.1]} 29... Re1 {[%clk 0:00:25.3]} 30. Kf3 {[%clk 0:00:27.2]} 30...
Rxe5 {[%clk 0:00:24.9]} 31. Be4 {[%clk 0:00:25.3]} 31... h5 {[%clk 0:00:19.9]}
32. h4 {[%clk 0:00:24.7]} 32... g5 {[%clk 0:00:19.7]} 33. Rc1 {[%clk 0:00:20.4]}
33... Bb2 {[%clk 0:00:06.8]} 34. Rb1 {[%clk 0:00:20]} 34... Ba3 {[%clk
0:00:06.3]} 35. Rb7+ {[%clk 0:00:19.6]} 35... Kd6 {[%clk 0:00:06.3]} 36. Rh7
{[%clk 0:00:19.2]} 36... g4+ {[%clk 0:00:06.4]} 37. Ke3 {[%clk 0:00:19.2]} 37...
Bc1+ {[%clk 0:00:06]} 38. Kd3 {[%clk 0:00:19.4]} 38... c4+ {[%clk 0:00:06.2]}
39. Kd4 {[%clk 0:00:19.2]} 39... Bb2+ {[%clk 0:00:06.1]} 40. Ke3 {[%clk
0:00:19.4]} 40... c3 {[%clk 0:00:05.9]} 41. Rb7 {[%clk 0:00:18]} 41... c2 {[%clk
0:00:05.2]} 42. Rxb2 {[%clk 0:00:15.2]} 42... c1=Q+ {[%clk 0:00:05.1]} 43. Rd2+
{[%clk 0:00:16.1]} 43... Qxd2+ {[%clk 0:00:05.3]} 44. Kxd2 {[%clk 0:00:17]}
44... Rxe4 {[%clk 0:00:05.8]} 45. Kd3 {[%clk 0:00:17.9]} 45... Rxa4 {[%clk
0:00:05.8]} 46. Ke3 {[%clk 0:00:18.4]} 46... Kd5 {[%clk 0:00:05.9]} 0-1

[Event "*** Titled Tuesday Blitz"]
[Site "Chess.com"]
[Date "2021.03.16"]
[Round "7"]
[White "cukin84"]
[Black "ViktoriyaTarasova"]
[Result "0-1"]
[WhiteElo "2122"]
[BlackElo "2356"]
[TimeControl "180+1"]
[EndTime "11:17:52 PDT"]
[Termination "ViktoriyaTarasova won by resignation"]

1. e4 {[%clk 0:03:00.9]} 1... c5 {[%clk 0:02:58]} 2. Nc3 {[%clk 0:03:00.4]} 2...
d6 {[%clk 0:02:56.9]} 3. f4 {[%clk 0:02:59.8]} 3... g6 {[%clk 0:02:56.9]} 4. Nf3
{[%clk 0:03:00]} 4... Bg7 {[%clk 0:02:57.4]} 5. d3 {[%clk 0:02:58.3]} 5... e6
{[%clk 0:02:57.4]} 6. g3 {[%clk 0:02:58.5]} 6... Ne7 {[%clk 0:02:58]} 7. Bg2
{[%clk 0:02:58.7]} 7... O-O {[%clk 0:02:58.7]} 8. O-O {[%clk 0:02:58.2]} 8...
Nbc6 {[%clk 0:02:59.3]} 9. Be3 {[%clk 0:02:56.7]} 9... Rb8 {[%clk 0:02:58.8]}
10. Qe1 {[%clk 0:02:55.2]} 10... b5 {[%clk 0:02:58.5]} 11. Nd1 {[%clk
0:02:54.5]} 11... Bb7 {[%clk 0:02:54.9]} 12. Qf2 {[%clk 0:02:48.5]} 12... f5
{[%clk 0:02:33]} 13. e5 {[%clk 0:02:47]} 13... dxe5 {[%clk 0:02:32.3]} 14. Bxc5
{[%clk 0:02:35.4]} 14... exf4 {[%clk 0:02:17.1]} 15. gxf4 {[%clk 0:02:34.8]}
15... Nd5 {[%clk 0:01:25.5]} 16. Ng5 {[%clk 0:02:27.7]} 16... Qd7 {[%clk
0:01:17.9]} 17. Bxf8 {[%clk 0:02:13.8]} 17... Bd4 {[%clk 0:01:16.6]} 18. Bh6
{[%clk 0:01:48.8]} 18... Bxf2+ {[%clk 0:01:15.6]} 19. Rxf2 {[%clk 0:01:49]}
19... Nd8 {[%clk 0:01:10.6]} 20. Re2 {[%clk 0:01:35]} 20... Nf6 {[%clk
0:01:07.7]} 21. Nf2 {[%clk 0:01:27.3]} 21... Bxg2 {[%clk 0:01:04.5]} 22. Kxg2
{[%clk 0:01:27.2]} 22... Nf7 {[%clk 0:00:54.9]} 23. Nxf7 {[%clk 0:01:25.6]}
23... Qxf7 {[%clk 0:00:52.2]} 24. Bg5 {[%clk 0:01:24]} 24... Nd5 {[%clk
0:00:47.7]} 25. Rae1 {[%clk 0:01:22.2]} 25... Re8 {[%clk 0:00:47.7]} 26. c3
{[%clk 0:01:17.8]} 26... Kg7 {[%clk 0:00:46.9]} 27. Nh3 {[%clk 0:01:11.8]} 27...
h6 {[%clk 0:00:46.9]} 28. Bh4 {[%clk 0:01:11.7]} 28... Qb7 {[%clk 0:00:42.2]}
29. Kg1 {[%clk 0:01:06.8]} 29... Kf7 {[%clk 0:00:38.7]} 30. Bf2 {[%clk
0:01:05.5]} 30... Qa6 {[%clk 0:00:30.2]} 31. a3 {[%clk 0:01:04.7]} 31... Qd6
{[%clk 0:00:30.7]} 32. Re5 {[%clk 0:01:00]} 32... g5 {[%clk 0:00:30]} 33. fxg5
{[%clk 0:00:58.6]} 33... Rg8 {[%clk 0:00:26.6]} 34. Rxe6 {[%clk 0:00:50]} 34...
Qxe6 {[%clk 0:00:26.1]} 35. Rxe6 {[%clk 0:00:49.8]} 35... Kxe6 {[%clk
0:00:26.8]} 36. Kf1 {[%clk 0:00:49]} 36... hxg5 {[%clk 0:00:26.4]} 37. Bc5
{[%clk 0:00:46.9]} 37... a6 {[%clk 0:00:25.6]} 38. Nf2 {[%clk 0:00:45.7]} 38...
Nf4 {[%clk 0:00:23.5]} 39. Ke1 {[%clk 0:00:41.2]} 39... Rh8 {[%clk 0:00:21.9]}
40. h3 {[%clk 0:00:34.8]} 40... Nxh3 {[%clk 0:00:21.1]} 41. Nd1 {[%clk
0:00:33.4]} 41... Nf4 {[%clk 0:00:20.2]} 42. Kf2 {[%clk 0:00:33.3]} 42... Nxd3+
{[%clk 0:00:16.6]} 43. Kg2 {[%clk 0:00:33]} 43... Nxc5 {[%clk 0:00:17.1]} 44.
Nf2 {[%clk 0:00:29.9]} 44... Ne4 {[%clk 0:00:17.3]} 45. Nd3 {[%clk 0:00:29.6]}
45... Rd8 {[%clk 0:00:17.3]} 46. Nb4 {[%clk 0:00:28.8]} 46... Rd6 {[%clk
0:00:17.5]} 47. b3 {[%clk 0:00:28.1]} 47... Ke5 {[%clk 0:00:17.5]} 48. c4 {[%clk
0:00:27.7]} 48... bxc4 {[%clk 0:00:17.1]} 49. bxc4 {[%clk 0:00:27.8]} 49... Nc5
{[%clk 0:00:17.3]} 50. Kf2 {[%clk 0:00:25.1]} 50... a5 {[%clk 0:00:17.5]} 51.
Nc2 {[%clk 0:00:24]} 51... Rd2+ {[%clk 0:00:17.1]} 0-1

[Event "*** Titled Tuesday Blitz"]
[Site "Chess.com"]
[Date "2021.03.16"]
[Round "7"]
[White "Margency"]
[Black "Ermito2020"]
[Result "1-0"]
[WhiteElo "2724"]
[BlackElo "2519"]
[TimeControl "180+1"]
[EndTime "11:17:53 PDT"]
[Termination "Margency won by checkmate"]

1. e4 {[%clk 0:03:00.9]} 1... c5 {[%clk 0:02:59.4]} 2. Nf3 {[%clk 0:03:00.7]}
2... d6 {[%clk 0:02:59.8]} 3. d4 {[%clk 0:03:01.3]} 3... cxd4 {[%clk 0:03:00.7]}
4. Nxd4 {[%clk 0:03:02]} 4... Nf6 {[%clk 0:03:01.5]} 5. Nc3 {[%clk 0:03:02.5]}
5... Nc6 {[%clk 0:03:02.4]} 6. Bg5 {[%clk 0:03:02.2]} 6... e6 {[%clk 0:03:02.5]}
7. Qd2 {[%clk 0:03:02.4]} 7... a6 {[%clk 0:03:02.9]} 8. O-O-O {[%clk 0:03:02.6]}
8... Bd7 {[%clk 0:03:03.4]} 9. f3 {[%clk 0:03:02]} 9... Be7 {[%clk 0:03:02]} 10.
Be3 {[%clk 0:03:02]} 10... Nxd4 {[%clk 0:03:00.1]} 11. Bxd4 {[%clk 0:03:02.1]}
11... b5 {[%clk 0:02:57.2]} 12. Kb1 {[%clk 0:03:01.8]} 12... O-O {[%clk
0:02:55.7]} 13. g4 {[%clk 0:03:01.1]} 13... b4 {[%clk 0:02:53.6]} 14. Ne2 {[%clk
0:03:01]} 14... a5 {[%clk 0:02:42.8]} 15. g5 {[%clk 0:03:00.3]} 15... Ne8 {[%clk
0:02:42.2]} 16. h4 {[%clk 0:02:57.8]} 16... Nc7 {[%clk 0:02:41.8]} 17. Ng3
{[%clk 0:02:45.7]} 17... Nb5 {[%clk 0:02:40.5]} 18. Bxb5 {[%clk 0:02:40.2]}
18... Bxb5 {[%clk 0:02:39.7]} 19. f4 {[%clk 0:02:27.2]} 19... d5 {[%clk
0:02:38.4]} 20. e5 {[%clk 0:02:24.8]} 20... a4 {[%clk 0:02:36]} 21. f5 {[%clk
0:02:15.3]} 21... exf5 {[%clk 0:02:33.9]} 22. Nxf5 {[%clk 0:02:14.8]} 22... b3
{[%clk 0:02:34.3]} 23. Rhg1 {[%clk 0:01:58.7]} 23... Rc8 {[%clk 0:02:13.4]} 24.
c3 {[%clk 0:01:45.7]} 24... bxa2+ {[%clk 0:01:53.8]} 25. Ka1 {[%clk 0:01:43.9]}
25... a3 {[%clk 0:01:53.9]} 26. b3 {[%clk 0:01:39.3]} 26... Qd7 {[%clk
0:01:51.3]} 27. Nxg7 {[%clk 0:01:33.1]} 27... Qh3 {[%clk 0:01:20.2]} 28. Nh5
{[%clk 0:01:18.5]} 28... Bd7 {[%clk 0:01:01.6]} 29. e6 {[%clk 0:00:50.4]} 29...
Bxe6 {[%clk 0:00:55.4]} 30. Nf6+ {[%clk 0:00:48.6]} 30... Bxf6 {[%clk
0:00:55.4]} 31. gxf6+ {[%clk 0:00:48.4]} 31... Kh8 {[%clk 0:00:54.2]} 32. Rg7
{[%clk 0:00:46.1]} 32... Bf5 {[%clk 0:00:45.4]} 33. Qh6 {[%clk 0:00:37.8]} 33...
Rg8 {[%clk 0:00:45.4]} 34. Rxf7 {[%clk 0:00:30.8]} 34... Qg2 {[%clk 0:00:19.3]}
35. Qd2 {[%clk 0:00:07.8]} 35... Qf3 {[%clk 0:00:12.9]} 36. Re7 {[%clk
0:00:06.6]} 36... Rgf8 {[%clk 0:00:02]} 37. f7# {[%clk 0:00:05.9]} 1-0

[Event "*** Titled Tuesday Blitz"]
[Site "Chess.com"]
[Date "2021.03.16"]
[Round "7"]
[White "AlexPapasimakopoulos"]
[Black "alexrustemov"]
[Result "0-1"]
[WhiteElo "2614"]
[BlackElo "2781"]
[TimeControl "180+1"]
[EndTime "11:17:54 PDT"]
[Termination "alexrustemov won by resignation"]

1. d4 {[%clk 0:03:00.9]} 1... g6 {[%clk 0:02:59.8]} 2. c4 {[%clk 0:03:00.9]}
2... Bg7 {[%clk 0:03:00.2]} 3. e4 {[%clk 0:02:59.2]} 3... c5 {[%clk 0:02:56.8]}
4. d5 {[%clk 0:02:58.5]} 4... d6 {[%clk 0:02:53.2]} 5. Bd3 {[%clk 0:02:58.5]}
5... e5 {[%clk 0:02:51.2]} 6. Nc3 {[%clk 0:02:43.5]} 6... Ne7 {[%clk 0:02:49.5]}
7. f4 {[%clk 0:02:39.4]} 7... Nd7 {[%clk 0:02:44.1]} 8. Nf3 {[%clk 0:02:39]}
8... O-O {[%clk 0:02:43.4]} 9. O-O {[%clk 0:02:33.7]} 9... h6 {[%clk 0:02:36.5]}
10. fxe5 {[%clk 0:02:32.4]} 10... dxe5 {[%clk 0:02:33.6]} 11. Nh4 {[%clk
0:02:14.2]} 11... b6 {[%clk 0:02:29]} 12. Bd2 {[%clk 0:02:00.5]} 12... Ba6
{[%clk 0:02:28.1]} 13. b3 {[%clk 0:01:54.7]} 13... Nc8 {[%clk 0:02:27.3]} 14.
Qg4 {[%clk 0:01:49.1]} 14... Nd6 {[%clk 0:02:25.8]} 15. Rf2 {[%clk 0:01:44.7]}
15... Qe7 {[%clk 0:02:22.4]} 16. Raf1 {[%clk 0:01:43.5]} 16... Rae8 {[%clk
0:02:21.8]} 17. a4 {[%clk 0:01:38.6]} 17... Bc8 {[%clk 0:02:21.1]} 18. Qg3
{[%clk 0:01:35.7]} 18... Kh7 {[%clk 0:02:20]} 19. Nb5 {[%clk 0:01:32.2]} 19...
Nf6 {[%clk 0:02:08.3]} 20. Nxd6 {[%clk 0:01:30.2]} 20... Qxd6 {[%clk 0:02:08.7]}
21. h3 {[%clk 0:01:25.2]} 21... Nh5 {[%clk 0:02:08]} 22. Qe3 {[%clk 0:01:12.5]}
22... Nf4 {[%clk 0:02:06.7]} 23. Bb1 {[%clk 0:01:02.8]} 23... Qe7 {[%clk
0:01:59.7]} 24. Nf3 {[%clk 0:01:02.1]} 24... g5 {[%clk 0:01:34.3]} 25. Nh2
{[%clk 0:00:38.4]} 25... Qd6 {[%clk 0:01:23]} 26. Qf3 {[%clk 0:00:30]} 26... Qg6
{[%clk 0:01:19.3]} 27. Ng4 {[%clk 0:00:28.5]} 27... f5 {[%clk 0:01:18.3]} 28.
exf5 {[%clk 0:00:27.8]} 28... Bxf5 {[%clk 0:01:19.2]} 29. Bxf5 {[%clk
0:00:27.5]} 29... Qxf5 {[%clk 0:01:19]} 30. Re1 {[%clk 0:00:20.4]} 30... e4
{[%clk 0:01:18.3]} 31. Qg3 {[%clk 0:00:18.6]} 31... Bd4 {[%clk 0:01:16.2]} 32.
Be3 {[%clk 0:00:18.2]} 32... Qg6 {[%clk 0:01:14.1]} 33. d6 {[%clk 0:00:08.5]}
33... Qxd6 {[%clk 0:01:11.7]} 34. Rd2 {[%clk 0:00:08.3]} 34... Re6 {[%clk
0:01:06.2]} 35. Red1 {[%clk 0:00:08.6]} 35... Nd3 {[%clk 0:01:02.6]} 36. Qxd6
{[%clk 0:00:07.7]} 36... Rxd6 {[%clk 0:01:03.5]} 37. Re2 {[%clk 0:00:06.1]}
37... Nf4 {[%clk 0:00:57.9]} 38. Red2 {[%clk 0:00:05.2]} 38... h5 {[%clk
0:00:58.3]} 39. Bxd4 {[%clk 0:00:04.8]} 39... cxd4 {[%clk 0:00:56.7]} 40. Ne3
{[%clk 0:00:04.7]} 40... d3 {[%clk 0:00:50.6]} 41. Kh2 {[%clk 0:00:04.4]} 41...
Ne2 {[%clk 0:00:49.4]} 42. Re1 {[%clk 0:00:04.3]} 42... Rf2 {[%clk 0:00:46.4]}
43. Nd5 {[%clk 0:00:04.5]} 43... h4 {[%clk 0:00:44.4]} 44. Nc3 {[%clk
0:00:04.2]} 44... Nxc3 {[%clk 0:00:40.1]} 45. Rxf2 {[%clk 0:00:04.6]} 45... d2
{[%clk 0:00:40.9]} 46. Ref1 {[%clk 0:00:04.7]} 46... e3 {[%clk 0:00:38.2]} 47.
Rf7+ {[%clk 0:00:04.4]} 47... Kg6 {[%clk 0:00:37.8]} 48. Rxa7 {[%clk 0:00:04.2]}
48... e2 {[%clk 0:00:36.3]} 49. Rff7 {[%clk 0:00:05.1]} 49... e1=Q {[%clk
0:00:36]} 50. Rg7+ {[%clk 0:00:05.5]} 50... Kf5 {[%clk 0:00:36.2]} 51. Raf7+
{[%clk 0:00:06.1]} 51... Rf6 {[%clk 0:00:36.2]} 52. Re7 {[%clk 0:00:07]} 0-1

[Event "*** Titled Tuesday Blitz"]
[Site "Chess.com"]
[Date "2021.03.16"]
[Round "7"]
[White "crazy_but_lazy"]
[Black "Mrlammy"]
[Result "1-0"]
[WhiteElo "2471"]
[BlackElo "2314"]
[TimeControl "180+1"]
[EndTime "11:17:56 PDT"]
[Termination "crazy_but_lazy won by checkmate"]

1. d4 {[%clk 0:03:00.9]} 1... Nf6 {[%clk 0:02:59.4]} 2. c4 {[%clk 0:03:00.9]}
2... e5 {[%clk 0:02:58.7]} 3. dxe5 {[%clk 0:03:00.3]} 3... Ng4 {[%clk
0:02:59.2]} 4. e4 {[%clk 0:03:00.8]} 4... Nxe5 {[%clk 0:02:55.7]} 5. f4 {[%clk
0:03:01.4]} 5... Nec6 {[%clk 0:02:54.6]} 6. Nf3 {[%clk 0:03:01.2]} 6... Bb4+
{[%clk 0:02:54.6]} 7. Bd2 {[%clk 0:03:00.7]} 7... Qe7 {[%clk 0:02:54.4]} 8. Bd3
{[%clk 0:02:58.7]} 8... O-O {[%clk 0:02:50.2]} 9. O-O {[%clk 0:02:56]} 9... Bc5+
{[%clk 0:02:48.9]} 10. Kh1 {[%clk 0:02:56.5]} 10... a5 {[%clk 0:02:48.3]} 11.
Nc3 {[%clk 0:02:56.5]} 11... Na6 {[%clk 0:02:46.5]} 12. Nd5 {[%clk 0:02:55.7]}
12... Qd8 {[%clk 0:02:44.6]} 13. a3 {[%clk 0:02:42]} 13... Nd4 {[%clk
0:02:30.3]} 14. Bc3 {[%clk 0:02:38.8]} 14... Nxf3 {[%clk 0:02:29]} 15. Qxf3
{[%clk 0:02:38.4]} 15... c6 {[%clk 0:02:20.5]} 16. Ne3 {[%clk 0:01:04.7]} 16...
Be7 {[%clk 0:02:16.5]} 17. Nf5 {[%clk 0:01:02.5]} 17... Bf6 {[%clk 0:02:15.1]}
18. e5 {[%clk 0:01:02.4]} 18... Be7 {[%clk 0:02:10.8]} 19. Rad1 {[%clk
0:01:02.5]} 19... Nc5 {[%clk 0:02:08.7]} 20. Bc2 {[%clk 0:00:54.1]} 20... Ne6
{[%clk 0:02:07]} 21. Qh3 {[%clk 0:00:47.9]} 21... g6 {[%clk 0:01:41.9]} 22. Nh6+
{[%clk 0:00:47.6]} 22... Kh8 {[%clk 0:01:36.4]} 23. f5 {[%clk 0:00:48.5]} 23...
Ng5 {[%clk 0:01:20.4]} 24. Qg3 {[%clk 0:00:26.6]} 24... f6 {[%clk 0:00:35.7]}
25. exf6 {[%clk 0:00:24.5]} 25... Bxf6 {[%clk 0:00:34.2]} 26. Qxg5 {[%clk
0:00:23.7]} 26... Bxc3 {[%clk 0:00:33.9]} 27. Qxd8 {[%clk 0:00:23.9]} 27... Rxd8
{[%clk 0:00:33.1]} 28. Nf7+ {[%clk 0:00:24]} 28... Kg7 {[%clk 0:00:33]} 29. Nxd8
{[%clk 0:00:23.8]} 29... Bf6 {[%clk 0:00:33.1]} 30. Nxb7 {[%clk 0:00:18.6]}
30... Bxb7 {[%clk 0:00:32.3]} 31. Rxd7+ {[%clk 0:00:19.1]} 31... Kh6 {[%clk
0:00:28.7]} 32. fxg6 {[%clk 0:00:17.3]} 32... Bc8 {[%clk 0:00:24]} 33. Rxh7+
{[%clk 0:00:14.9]} 33... Kg5 {[%clk 0:00:23.9]} 34. h4+ {[%clk 0:00:13.9]} 34...
Kg4 {[%clk 0:00:23.7]} 35. Rxf6 {[%clk 0:00:13.9]} 35... Ba6 {[%clk 0:00:20.2]}
36. Bd1+ {[%clk 0:00:12.5]} 36... Kg3 {[%clk 0:00:15.3]} 37. Rf3+ {[%clk
0:00:13.4]} 37... Kg4 {[%clk 0:00:14]} 38. Rf8+ {[%clk 0:00:13]} 38... Kg3
{[%clk 0:00:12.4]} 39. Rxa8 {[%clk 0:00:13.2]} 39... Bxc4 {[%clk 0:00:11.8]} 40.
g7 {[%clk 0:00:13.8]} 40... Kf2 {[%clk 0:00:10.6]} 41. g8=Q {[%clk 0:00:14.7]}
41... Bd5 {[%clk 0:00:10.9]} 42. Qxd5 {[%clk 0:00:14.4]} 42... cxd5 {[%clk
0:00:10.7]} 43. h5 {[%clk 0:00:15.1]} 43... d4 {[%clk 0:00:10.5]} 44. h6 {[%clk
0:00:15.6]} 44... d3 {[%clk 0:00:11.4]} 45. Re7 {[%clk 0:00:14.7]} 45... d2
{[%clk 0:00:11.6]} 46. h7 {[%clk 0:00:15.2]} 46... a4 {[%clk 0:00:11.8]} 47.
h8=Q {[%clk 0:00:15.1]} 47... Kf1 {[%clk 0:00:11.7]} 48. Rf8# {[%clk 0:00:13.8]}
1-0

[Event "*** Titled Tuesday Blitz"]
[Site "Chess.com"]
[Date "2021.03.16"]
[Round "7"]
[White "Murad_Ibrahimli"]
[Black "Anton_Demchenko"]
[Result "1-0"]
[WhiteElo "2787"]
[BlackElo "2879"]
[TimeControl "180+1"]
[EndTime "11:17:58 PDT"]
[Termination "Murad_Ibrahimli won on time"]

1. d4 {[%clk 0:03:00.9]} 1... Nf6 {[%clk 0:02:59.2]} 2. c4 {[%clk 0:03:01.4]}
2... g6 {[%clk 0:02:58.9]} 3. Nc3 {[%clk 0:03:01.3]} 3... Bg7 {[%clk 0:02:59.5]}
4. Nf3 {[%clk 0:03:00.1]} 4... O-O {[%clk 0:03:00.4]} 5. Bg5 {[%clk 0:02:59.8]}
5... d6 {[%clk 0:02:55.1]} 6. e3 {[%clk 0:02:57.5]} 6... Nbd7 {[%clk 0:02:51.1]}
7. Be2 {[%clk 0:02:55.3]} 7... c6 {[%clk 0:02:44.9]} 8. O-O {[%clk 0:02:54.4]}
8... h6 {[%clk 0:02:44.5]} 9. Bh4 {[%clk 0:02:53.5]} 9... a6 {[%clk 0:02:35.6]}
10. Nd2 {[%clk 0:02:46.8]} 10... e5 {[%clk 0:02:31.6]} 11. Qc2 {[%clk
0:02:24.2]} 11... exd4 {[%clk 0:02:00.8]} 12. exd4 {[%clk 0:02:22.4]} 12... g5
{[%clk 0:02:01.2]} 13. Bg3 {[%clk 0:02:22.1]} 13... Ne8 {[%clk 0:02:01.9]} 14.
Nb3 {[%clk 0:02:15.7]} 14... f5 {[%clk 0:01:59.6]} 15. f4 {[%clk 0:02:09.6]}
15... g4 {[%clk 0:01:44.1]} 16. Kh1 {[%clk 0:02:06.6]} 16... Ndf6 {[%clk
0:01:42.7]} 17. Bh4 {[%clk 0:02:04.6]} 17... Qc7 {[%clk 0:01:33.5]} 18. Bd3
{[%clk 0:02:02.3]} 18... Qf7 {[%clk 0:01:04.1]} 19. Rae1 {[%clk 0:01:59.5]}
19... Qh5 {[%clk 0:00:48.8]} 20. g3 {[%clk 0:01:46.6]} 20... Bd7 {[%clk
0:00:48.8]} 21. Re7 {[%clk 0:01:39.1]} 21... Rf7 {[%clk 0:00:48.8]} 22. Rfe1
{[%clk 0:01:38.5]} 22... Bf8 {[%clk 0:00:44.1]} 23. Rxf7 {[%clk 0:01:14.1]}
23... Kxf7 {[%clk 0:00:45]} 24. Na4 {[%clk 0:01:02]} 24... Ng7 {[%clk
0:00:30.2]} 25. Nb6 {[%clk 0:01:00.3]} 25... Rd8 {[%clk 0:00:30.8]} 26. d5
{[%clk 0:00:49.8]} 26... Qg6 {[%clk 0:00:10.9]} 27. Nxd7 {[%clk 0:00:32.2]}
27... Rxd7 {[%clk 0:00:10.6]} 28. Nd4 {[%clk 0:00:30.5]} 28... Ne4 {[%clk
0:00:04.2]} 29. Rxe4 {[%clk 0:00:24.3]} 29... fxe4 {[%clk 0:00:05.1]} 30. Bxe4
{[%clk 0:00:24.7]} 30... Qh5 {[%clk 0:00:05.1]} 31. dxc6 {[%clk 0:00:25.2]}
31... bxc6 {[%clk 0:00:05.2]} 32. Bxc6 {[%clk 0:00:25.8]} 32... Re7 {[%clk
0:00:03.2]} 33. Bd5+ {[%clk 0:00:26.2]} 33... Ke8 {[%clk 0:00:03.2]} 34. Bxe7
{[%clk 0:00:26.6]} 34... Bxe7 {[%clk 0:00:03.7]} 35. Qa4+ {[%clk 0:00:21.5]}
35... Kf8 {[%clk 0:00:04]} 36. Qxa6 {[%clk 0:00:22.1]} 36... Qg6 {[%clk
0:00:02.3]} 37. Qc8+ {[%clk 0:00:20.6]} 37... Ne8 {[%clk 0:00:02.9]} 38. Ne6+
{[%clk 0:00:19.8]} 38... Kg8 {[%clk 0:00:03.4]} 39. f5 {[%clk 0:00:18.2]} 39...
Qxf5 {[%clk 0:00:01.8]} 40. Qxe8+ {[%clk 0:00:17.6]} 40... Bf8 {[%clk
0:00:02.4]} 41. Qxf8+ {[%clk 0:00:17.8]} 41... Kh7 {[%clk 0:00:02]} 42. Qxf5+
{[%clk 0:00:17.8]} 1-0

[Event "*** Titled Tuesday Blitz"]
[Site "Chess.com"]
[Date "2021.03.16"]
[Round "7"]
[White "bazar-wokzal"]
[Black "Evandro_Barbosa"]
[Result "1-0"]
[WhiteElo "2506"]
[BlackElo "2639"]
[TimeControl "180+1"]
[EndTime "11:17:58 PDT"]
[Termination "bazar-wokzal won on time"]

1. e4 {[%clk 0:03:00.9]} 1... c5 {[%clk 0:02:58.5]} 2. c3 {[%clk 0:03:00.7]}
2... Nf6 {[%clk 0:02:58]} 3. e5 {[%clk 0:03:01.1]} 3... Nd5 {[%clk 0:02:58.3]}
4. d4 {[%clk 0:03:02]} 4... cxd4 {[%clk 0:02:58.3]} 5. cxd4 {[%clk 0:03:02.9]}
5... e6 {[%clk 0:02:58.5]} 6. Nc3 {[%clk 0:03:02.6]} 6... Nxc3 {[%clk
0:02:58.3]} 7. bxc3 {[%clk 0:03:02.6]} 7... d6 {[%clk 0:02:59.2]} 8. f4 {[%clk
0:03:02.6]} 8... Bd7 {[%clk 0:02:58.2]} 9. Nf3 {[%clk 0:03:02.4]} 9... Bc6
{[%clk 0:02:58.4]} 10. Bd3 {[%clk 0:03:02.3]} 10... Nd7 {[%clk 0:02:57.7]} 11.
O-O {[%clk 0:03:02.6]} 11... g6 {[%clk 0:02:56.5]} 12. Ng5 {[%clk 0:02:56.3]}
12... Bg7 {[%clk 0:02:49.2]} 13. Ba3 {[%clk 0:02:44.1]} 13... dxe5 {[%clk
0:02:39.6]} 14. Nxf7 {[%clk 0:02:22.6]} 14... Kxf7 {[%clk 0:02:38.5]} 15. fxe5+
{[%clk 0:02:22.6]} 15... Kg8 {[%clk 0:02:28.9]} 16. Qg4 {[%clk 0:02:21.2]} 16...
Qe8 {[%clk 0:02:22.6]} 17. Rf2 {[%clk 0:02:10.5]} 17... Rd8 {[%clk 0:01:41.5]}
18. Raf1 {[%clk 0:02:05.1]} 18... Nxe5 {[%clk 0:01:18.8]} 19. dxe5 {[%clk
0:02:01]} 19... Rxd3 {[%clk 0:01:17.3]} 20. Bf8 {[%clk 0:01:04.6]} 20... Rd8
{[%clk 0:00:55]} 21. Bxg7 {[%clk 0:00:46.4]} 21... Kxg7 {[%clk 0:00:55]} 22. Qg5
{[%clk 0:00:47]} 22... Qd7 {[%clk 0:00:10.3]} 23. Rf7+ {[%clk 0:00:29.5]} 23...
Qxf7 {[%clk 0:00:08.3]} 24. Rxf7+ {[%clk 0:00:30.4]} 24... Kxf7 {[%clk
0:00:08.9]} 25. Qf6+ {[%clk 0:00:31]} 25... Ke8 {[%clk 0:00:06.6]} 26. Qxe6+
{[%clk 0:00:31.3]} 26... Kf8 {[%clk 0:00:06.7]} 27. Qf6+ {[%clk 0:00:31.7]}
27... Ke8 {[%clk 0:00:07.3]} 28. Qxh8+ {[%clk 0:00:31.1]} 28... Kd7 {[%clk
0:00:07.8]} 29. Qxh7+ {[%clk 0:00:31.2]} 29... Kc8 {[%clk 0:00:07.6]} 30. Qxg6
{[%clk 0:00:31.4]} 30... Rd1+ {[%clk 0:00:06.4]} 31. Kf2 {[%clk 0:00:30.9]}
31... Rd2+ {[%clk 0:00:07.3]} 32. Ke3 {[%clk 0:00:31]} 32... Rxg2 {[%clk
0:00:06.4]} 33. Qe6+ {[%clk 0:00:31.2]} 33... Kc7 {[%clk 0:00:06.8]} 34. Qd6+
{[%clk 0:00:31.2]} 34... Kb6 {[%clk 0:00:07.2]} 35. h4 {[%clk 0:00:28.8]} 35...
Rh2 {[%clk 0:00:06]} 36. Qd8+ {[%clk 0:00:23.2]} 36... Ka6 {[%clk 0:00:05.7]}
37. e6 {[%clk 0:00:21]} 37... Rh3+ {[%clk 0:00:05.4]} 38. Kf4 {[%clk 0:00:20.6]}
38... Rh1 {[%clk 0:00:04.2]} 39. Kg5 {[%clk 0:00:18.5]} 39... Re1 {[%clk
0:00:03.9]} 40. e7 {[%clk 0:00:18.1]} 40... Re5+ {[%clk 0:00:03.9]} 41. Kf6
{[%clk 0:00:18.1]} 41... Re4 {[%clk 0:00:03.7]} 42. h5 {[%clk 0:00:18.2]} 42...
Rf4+ {[%clk 0:00:02.9]} 43. Kg5 {[%clk 0:00:18]} 43... Re4 {[%clk 0:00:01.6]}
44. h6 {[%clk 0:00:18.1]} 1-0